[Event "NJSK 2024 A"]
[Site "Groningen, Netherlands"]
[Date "2024.05.03"]
[Round "7.5"]
[White "Ramak, Vince"]
[Black "Labruyere, Roger"]
[Result "0-1"]
[TimeControl "90min/40moves + 30min + 30sec/move"]
[WhiteElo "1902"]
[BlackElo "2267"]

1. e4 {[%clk 01:30:44]} {[%emt 00:00:15]} a6 {[%clk 01:30:55]} {[%emt
00:00:06]} 2. d4 {[%clk 01:31:03]} {[%emt 00:00:10]} b5 {[%clk 01:30:57]}
{[%emt 00:00:28]} 3. Bd3 {[%clk 01:31:10]} {[%emt 00:00:23]} e6 {[%clk
01:31:21]} {[%emt 00:00:07]} 4. Nf3 {[%clk 01:31:07]} {[%emt 00:00:33]} Bb7
{[%clk 01:31:40]} {[%emt 00:00:09]} 5. O-O {[%clk 01:31:26]} {[%emt 00:00:11]}
Nf6 {[%clk 01:32:01]} {[%emt 00:00:10]} 6. Qe2 {[%clk 01:31:21]} {[%emt
00:00:36]} Be7 {[%clk 01:32:20]} {[%emt 00:00:11]} 7. a4 {[%clk 01:30:36]}
{[%emt 00:01:15]} b4 {[%clk 01:31:01]} {[%emt 00:01:48]} 8. c4 {[%clk
01:28:52]} {[%emt 00:02:14]} bxc3 {[%clk 01:28:53]} {[%emt 00:02:38]} 9. Nxc3
{[%clk 01:29:06]} {[%emt 00:00:16]} d5 {[%clk 01:29:14]} {[%emt 00:00:09]} 10.
Bg5 {[%clk 01:25:26]} {[%emt 00:04:10]} dxe4 {[%clk 01:27:33]} {[%emt
00:02:11]} 11. Nxe4 {[%clk 01:25:41]} {[%emt 00:00:15]} Nbd7 {[%clk 01:27:58]}
{[%emt 00:00:06]} 12. Bxf6 {[%clk 01:21:32]} {[%emt 00:04:39]} gxf6 {[%clk
01:27:08]} {[%emt 00:01:19]} 13. Rfd1 {[%clk 01:18:39]} {[%emt 00:03:23]} Rg8
{[%clk 01:23:04]} {[%emt 00:04:34]} 14. Nc5 {[%clk 01:16:55]} {[%emt 00:02:15]}
Bxc5 {[%clk 01:20:21]} {[%emt 00:03:13]} 15. dxc5 {[%clk 01:17:17]} {[%emt
00:00:07]} Qe7 {[%clk 01:20:29]} {[%emt 00:00:22]} 16. Bxh7 {[%clk 01:13:14]}
{[%emt 00:04:33]} Rg4 {[%clk 01:13:17]} {[%emt 00:07:42]} 17. h3 {[%clk
01:08:44]} {[%emt 00:05:00]} Rf4 {[%clk 01:09:46]} {[%emt 00:04:01]} 18. Qe3
{[%clk 01:06:28]} {[%emt 00:02:46]} e5 {[%clk 01:06:24]} {[%emt 00:03:52]} 19.
Rac1 {[%clk 01:01:45]} {[%emt 00:05:14]} Bxf3 {[%clk 01:05:07]} {[%emt
00:01:47]} 20. gxf3 {[%clk 01:02:05]} {[%emt 00:00:10]} Qe6 {[%clk 01:01:44]}
{[%emt 00:03:51]} 21. Be4 {[%clk 00:54:56]} {[%emt 00:07:40]} Rb8 {[%clk
00:59:34]} {[%emt 00:02:41]} 22. Bd5 {[%clk 00:53:27]} {[%emt 00:01:58]} Qxh3
{[%clk 00:59:15]} {[%emt 00:00:49]} 23. Bc6 {[%clk 00:53:21]} {[%emt 00:00:36]}
Rd8 {[%clk 00:59:31]} {[%emt 00:00:14]} 24. Rxd7 {[%clk 00:52:34]} {[%emt
00:01:17]} Rxd7 {[%clk 00:58:23]} {[%emt 00:01:38]} 25. Rd1 {[%clk 00:52:55]}
{[%emt 00:00:10]} Rg4+ {[%clk 00:58:36]} {[%emt 00:00:16]} 26. fxg4 {[%clk
00:53:07]} {[%emt 00:00:19]} Qxg4+ {[%clk 00:59:05]} {[%emt 00:00:01]} 27. Kh2
{[%clk 00:52:13]} {[%emt 00:01:23]} Qxd1 {[%clk 00:59:30]} {[%emt 00:00:04]} 28.
Qh6 {[%clk 00:48:51]} {[%emt 00:03:52]} Ke7 {[%clk 00:59:26]} {[%emt 00:00:34]}
29. Bxd7 {[%clk 00:49:17]} {[%emt 00:00:06]} Qxd7 {[%clk 00:59:50]} {[%emt
00:00:06]} 30. Qh4 {[%clk 00:48:51]} {[%emt 00:00:55]} Qd4 {[%clk 00:59:34]}
{[%emt 00:00:45]} 31. Qxd4 {[%clk 00:45:53]} {[%emt 00:03:29]} exd4 {[%clk
01:00:02]} {[%emt 00:00:02]} 32. Kg2 {[%clk 00:46:14]} {[%emt 00:00:09]} Ke6
{[%clk 01:00:27]} {[%emt 00:00:05]} 33. b4 {[%clk 00:45:08]} {[%emt 00:01:35]}
Kd5 {[%clk 01:00:52]} {[%emt 00:00:05]} 34. Kf3 {[%clk 00:43:54]} {[%emt
00:01:45]} Kc4 {[%clk 01:01:16]} {[%emt 00:00:05]} 35. b5 {[%clk 00:43:58]}
{[%emt 00:00:28]} Kxc5 {[%clk 01:01:24]} {[%emt 00:00:21]} 36. bxa6 {[%clk
00:44:15]} {[%emt 00:00:14]} Kb6 {[%clk 01:01:51]} {[%emt 00:00:02]} 37. Ke4
{[%clk 00:44:30]} {[%emt 00:00:16]} c5 {[%clk 01:02:17]} {[%emt 00:00:03]} 38.
a7 {[%clk 00:44:32]} {[%emt 00:00:28]} Kxa7 {[%clk 01:02:38]} {[%emt 00:00:09]}
0-1

[Event "NJSK 2024 A"]
[Site "Groningen, Netherlands"]
[Date "2024.05.03"]
[Round "7.6"]
[White "Klugstedt, Vincent"]
[Black "Leorato, Imanol"]
[Result "0-1"]
[TimeControl "90min/40moves + 30min + 30sec/move"]
[WhiteElo "1913"]
[BlackElo "1837"]

1. d4 {[%clk 01:30:58]} {[%emt 00:00:02]} Nf6 {[%clk 01:30:39]} {[%emt
00:00:21]} 2. c4 {[%clk 01:31:15]} {[%emt 00:00:12]} e6 {[%clk 01:30:30]}
{[%emt 00:00:39]} 3. Nc3 {[%clk 01:30:40]} {[%emt 00:01:05]} Bb4 {[%clk
01:30:34]} {[%emt 00:00:26]} 4. Qc2 {[%clk 01:30:54]} {[%emt 00:00:17]} Nc6
{[%clk 01:30:36]} {[%emt 00:00:27]} 5. Nf3 {[%clk 01:30:42]} {[%emt 00:00:43]}
d6 {[%clk 01:30:16]} {[%emt 00:00:50]} 6. Bd2 {[%clk 01:25:48]} {[%emt
00:05:24]} O-O {[%clk 01:26:28]} {[%emt 00:04:17]} 7. a3 {[%clk 01:23:12]}
{[%emt 00:03:08]} Bxc3 {[%clk 01:25:49]} {[%emt 00:01:08]} 8. Bxc3 {[%clk
01:23:23]} {[%emt 00:00:20]} Re8 {[%clk 01:25:10]} {[%emt 00:01:08]} 9. e4
{[%clk 01:19:55]} {[%emt 00:03:59]} e5 {[%clk 01:21:52]} {[%emt 00:03:47]} 10.
dxe5 {[%clk 01:18:09]} {[%emt 00:02:16]} Nxe5 {[%clk 01:18:30]} {[%emt
00:03:52]} 11. Nxe5 {[%clk 01:14:47]} {[%emt 00:03:52]} dxe5 {[%clk 01:16:53]}
{[%emt 00:02:07]} 12. Rd1 {[%clk 01:13:25]} {[%emt 00:01:54]} Qe7 {[%clk
01:04:12]} {[%emt 00:13:10]} 13. Be2 {[%clk 01:13:16]} {[%emt 00:00:38]} a5
{[%clk 00:52:22]} {[%emt 00:12:20]} 14. O-O {[%clk 01:12:45]} {[%emt 00:01:01]}
Bd7 {[%clk 00:50:12]} {[%emt 00:02:41]} 15. f4 {[%clk 01:06:03]} {[%emt
00:07:12]} Qc5+ {[%clk 00:26:51]} {[%emt 00:23:50]} 16. Kh1 {[%clk 01:06:05]}
{[%emt 00:00:28]} Bc6 {[%clk 00:25:22]} {[%emt 00:01:58]} 17. fxe5 {[%clk
01:00:55]} {[%emt 00:05:41]} Nxe4 {[%clk 00:25:10]} {[%emt 00:00:42]} 18. Bd4
{[%clk 01:00:32]} {[%emt 00:00:53]} Qe7 {[%clk 00:24:41]} {[%emt 00:00:59]} 19.
Bf3 {[%clk 01:00:10]} {[%emt 00:00:51]} Qh4 {[%clk 00:23:21]} {[%emt 00:01:51]}
20. Kg1 {[%clk 00:53:21]} {[%emt 00:07:19]} Re6 {[%clk 00:21:09]} {[%emt
00:02:41]} 21. Rfe1 {[%clk 00:37:52]} {[%emt 00:15:59]} Ng5 {[%clk 00:19:56]}
{[%emt 00:01:43]} 22. Bd5 {[%clk 00:27:33]} {[%emt 00:10:50]} Bxd5 {[%clk
00:13:55]} {[%emt 00:06:31]} 23. cxd5 {[%clk 00:27:52]} {[%emt 00:00:10]} Rh6
{[%clk 00:13:55]} {[%emt 00:00:31]} 24. h3 {[%clk 00:25:38]} {[%emt 00:02:44]}
Nxh3+ {[%clk 00:13:38]} {[%emt 00:00:47]} 25. gxh3 {[%clk 00:24:32]} {[%emt
00:01:36]} Rg6+ {[%clk 00:13:52]} {[%emt 00:00:16]} 26. Kf1 {[%clk 00:21:20]}
{[%emt 00:03:41]} Qxh3+ {[%clk 00:14:08]} {[%emt 00:00:14]} 27. Ke2 {[%clk
00:20:37]} {[%emt 00:01:13]} Rg2+ {[%clk 00:12:59]} {[%emt 00:01:39]} 28. Bf2
{[%clk 00:21:01]} {[%emt 00:00:07]} Rxf2+ {[%clk 00:13:21]} {[%emt 00:00:08]}
29. Kxf2 {[%clk 00:21:13]} {[%emt 00:00:18]} Qh2+ {[%clk 00:13:44]} {[%emt
00:00:06]} 30. Ke3 {[%clk 00:20:51]} {[%emt 00:00:52]} Qxc2 {[%clk 00:14:04]}
{[%emt 00:00:10]} 31. Rd2 {[%clk 00:21:14]} {[%emt 00:00:08]} Qc5+ {[%clk
00:14:14]} {[%emt 00:00:20]} 32. Ke4 {[%clk 00:21:19]} {[%emt 00:00:25]} Re8
{[%clk 00:14:26]} {[%emt 00:00:17]} 33. Ree2 {[%clk 00:21:04]} {[%emt
00:00:45]} h5 {[%clk 00:14:26]} {[%emt 00:00:31]} 0-1

[Event "NJSK 2024 A"]
[Site "Groningen, Netherlands"]
[Date "2024.05.03"]
[Round "7.7"]
[White "Van de Poel, Jona"]
[Black "Khatniuk, Anastasiia"]
[Result "0-1"]
[TimeControl "90min/40moves + 30min + 30sec/move"]
[WhiteElo "1865"]
[BlackElo "2012"]

1. Nf3 {[%clk 01:30:57]} {[%emt 00:00:03]} e6 {[%clk 01:30:34]} {[%emt
00:00:26]} 2. e3 {[%clk 01:30:26]} {[%emt 00:01:01]} d5 {[%clk 01:30:44]}
{[%emt 00:00:21]} 3. c4 {[%clk 01:30:30]} {[%emt 00:00:26]} Nf6 {[%clk
01:31:04]} {[%emt 00:00:10]} 4. b3 {[%clk 01:30:36]} {[%emt 00:00:24]} Be7
{[%clk 01:30:34]} {[%emt 00:00:59]} 5. Bb2 {[%clk 01:30:55]} {[%emt 00:00:11]}
c5 {[%clk 01:30:17]} {[%emt 00:00:47]} 6. Qc2 {[%clk 01:29:36]} {[%emt
00:01:50]} Nc6 {[%clk 01:30:22]} {[%emt 00:00:25]} 7. cxd5 {[%clk 01:27:25]}
{[%emt 00:02:41]} exd5 {[%clk 01:28:03]} {[%emt 00:02:48]} 8. d4 {[%clk
01:26:04]} {[%emt 00:01:52]} Nb4 {[%clk 01:26:13]} {[%emt 00:02:20]} 9. Bb5+
{[%clk 01:22:41]} {[%emt 00:03:53]} Bd7 {[%clk 01:24:38]} {[%emt 00:02:05]} 10.
Qe2 {[%clk 01:19:53]} {[%emt 00:03:15]} O-O {[%clk 01:17:03]} {[%emt 00:08:07]}
11. Bxd7 {[%clk 01:16:39]} {[%emt 00:03:45]} Qxd7 {[%clk 01:17:21]} {[%emt
00:00:12]} 12. a3 {[%clk 01:12:10]} {[%emt 00:05:00]} Nc6 {[%clk 01:17:44]}
{[%emt 00:00:06]} 13. Nbd2 {[%clk 01:11:46]} {[%emt 00:00:53]} Ne4 {[%clk
01:13:21]} {[%emt 00:04:54]} 14. dxc5 {[%clk 01:09:05]} {[%emt 00:03:11]} Bxc5
{[%clk 01:12:22]} {[%emt 00:01:29]} 15. O-O {[%clk 01:09:17]} {[%emt 00:00:18]}
f5 {[%clk 01:10:10]} {[%emt 00:02:42]} 16. Rfd1 {[%clk 01:08:14]} {[%emt
00:01:32]} Rae8 {[%clk 01:01:29]} {[%emt 00:09:11]} 17. Nxe4 {[%clk 01:03:15]}
{[%emt 00:05:30]} fxe4 {[%clk 01:01:03]} {[%emt 00:00:56]} 18. Nd2 {[%clk
00:51:19]} {[%emt 00:12:26]} Qf5 {[%clk 00:59:44]} {[%emt 00:01:49]} 19. Nf1
{[%clk 00:49:43]} {[%emt 00:02:06]} Qf7 {[%clk 00:52:14]} {[%emt 00:07:59]} 20.
Rd2 {[%clk 00:44:14]} {[%emt 00:06:00]} Ne5 {[%clk 00:50:42]} {[%emt 00:02:01]}
21. Bxe5 {[%clk 00:40:44]} {[%emt 00:04:00]} Rxe5 {[%clk 00:51:08]} {[%emt
00:00:05]} 22. b4 {[%clk 00:39:51]} {[%emt 00:01:24]} Bb6 {[%clk 00:49:34]}
{[%emt 00:02:03]} 23. Rc1 {[%clk 00:38:01]} {[%emt 00:02:19]} Rg5 {[%clk
00:47:40]} {[%emt 00:02:24]} 24. Rdc2 {[%clk 00:36:57]} {[%emt 00:01:35]} Rf5
{[%clk 00:37:50]} {[%emt 00:10:19]} 25. Rc8 {[%clk 00:32:38]} {[%emt 00:04:49]}
Qe6 {[%clk 00:37:17]} {[%emt 00:01:03]} 26. Rxf8+ {[%clk 00:32:17]} {[%emt
00:00:52]} Rxf8 {[%clk 00:37:40]} {[%emt 00:00:06]} 27. Qb2 {[%clk 00:28:03]}
{[%emt 00:04:44]} h6 {[%clk 00:35:33]} {[%emt 00:02:36]} 28. Ng3 {[%clk
00:24:34]} {[%emt 00:04:00]} Kh7 {[%clk 00:30:11]} {[%emt 00:05:53]} 29. Ne2
{[%clk 00:24:30]} {[%emt 00:00:34]} Qf5 {[%clk 00:27:29]} {[%emt 00:03:10]} 30.
Nd4 {[%clk 00:21:37]} {[%emt 00:03:25]} Bxd4 {[%clk 00:26:50]} {[%emt
00:01:09]} 31. exd4 {[%clk 00:22:00]} {[%emt 00:00:07]} Rf6 {[%clk 00:25:49]}
{[%emt 00:01:30]} 32. Rc3 {[%clk 00:20:59]} {[%emt 00:01:31]} Rg6 {[%clk
00:22:55]} {[%emt 00:03:24]} 33. Qd2 {[%clk 00:19:24]} {[%emt 00:02:06]} Rg5
{[%clk 00:20:44]} {[%emt 00:02:39]} 34. g3 {[%clk 00:16:33]} {[%emt 00:03:23]}
Qg4 {[%clk 00:18:16]} {[%emt 00:02:57]} 35. Rc7 {[%clk 00:13:14]} {[%emt
00:03:50]} Qf3 {[%clk 00:15:52]} {[%emt 00:02:53]} 36. Rxb7 {[%clk 00:10:40]}
{[%emt 00:03:04]} Qxa3 {[%clk 00:15:52]} {[%emt 00:00:30]} 37. Qf4 {[%clk
00:10:51]} {[%emt 00:00:19]} Qa1+ {[%clk 00:13:32]} {[%emt 00:02:50]} 38. Kg2
{[%clk 00:11:16]} {[%emt 00:00:06]} Qxd4 {[%clk 00:13:34]} {[%emt 00:00:28]} 39.
h4 {[%clk 00:11:13]} {[%emt 00:00:33]} Rg6 {[%clk 00:13:15]} {[%emt 00:00:48]}
40. Qf5 {[%clk 00:10:30]} {[%emt 00:01:13]} Qf6 {[%clk 00:11:37]} {[%emt
00:02:08]} 41. Qxd5 {[%clk 00:08:57]} {[%emt 00:02:03]} Qf3+ {[%clk 00:07:14]}
{[%emt 00:04:52]} 42. Kg1 {[%clk 00:03:51]} {[%emt 00:05:37]} Rf6 {[%clk
00:04:48]} {[%emt 00:02:54]} 43. Qd4 {[%clk 00:02:26]} {[%emt 00:01:56]} e3
{[%clk 00:03:51]} {[%emt 00:01:28]} 44. Qd3+ {[%clk 00:28:39]} {[%emt
00:04:18]} Rf5 {[%clk 00:33:32]} {[%emt 00:00:47]} 45. fxe3 {[%clk 00:26:23]}
{[%emt 00:02:47]} Qxg3+ {[%clk 00:33:47]} {[%emt 00:00:15]} 46. Kh1 {[%clk
00:26:48]} {[%emt 00:00:06]} Qxh4+ {[%clk 00:34:11]} {[%emt 00:00:06]} 47. Kg2
{[%clk 00:26:59]} {[%emt 00:00:18]} Qg5+ {[%clk 00:34:34]} {[%emt 00:00:08]}
0-1

[Event "NJSK 2024 A"]
[Site "Groningen, Netherlands"]
[Date "2024.05.03"]
[Round "8.1"]
[White "Bakija, Alan"]
[Black "Slagboom, Leandro"]
[Result "1-0"]
[TimeControl "90min/40moves + 30min + 30sec/move"]
[WhiteElo "2101"]
[BlackElo "2326"]

1. Nf3 {[%clk 00:05:05]} d5 {[%clk 00:05:05]} {[%emt 00:00:02]} 2. g3 {[%clk
00:05:07]} {[%emt 00:00:01]} Nc6 {[%clk 00:05:07]} {[%emt 00:00:01]} 3. d4
{[%clk 00:05:08]} {[%emt 00:00:01]} g6 {[%clk 00:05:08]} {[%emt 00:00:02]} 4.
b3 {[%clk 00:04:33]} {[%emt 00:00:39]} Bg7 {[%clk 00:05:09]} {[%emt 00:00:02]}
5. Bb2 {[%clk 00:04:35]} Nf6 {[%clk 00:05:09]} {[%emt 00:00:03]} 6. Bg2 {[%clk
00:04:37]} {[%emt 00:00:01]} Bf5 {[%clk 00:05:05]} {[%emt 00:00:07]} 7. Nh4
{[%clk 00:04:29]} {[%emt 00:00:12]} Be6 {[%clk 00:04:50]} {[%emt 00:00:17]} 8.
Nd2 {[%clk 00:04:24]} {[%emt 00:00:08]} O-O {[%clk 00:04:15]} {[%emt 00:00:38]}
9. O-O {[%clk 00:04:25]} {[%emt 00:00:02]} a5 {[%clk 00:04:13]} {[%emt
00:00:05]} 10. c4 {[%clk 00:03:56]} {[%emt 00:00:32]} dxc4 {[%clk 00:04:01]}
{[%emt 00:00:16]} 11. Nxc4 {[%clk 00:03:58]} Bd5 {[%clk 00:03:55]} {[%emt
00:00:09]} 12. Nf3 {[%clk 00:03:58]} {[%emt 00:00:02]} a4 {[%clk 00:03:50]}
{[%emt 00:00:08]} 13. Rc1 {[%clk 00:03:39]} {[%emt 00:00:22]} axb3 {[%clk
00:03:29]} {[%emt 00:00:24]} 14. axb3 {[%clk 00:03:41]} {[%emt 00:00:01]} Nb4
{[%clk 00:03:21]} {[%emt 00:00:11]} 15. Qd2 {[%clk 00:03:30]} {[%emt 00:00:15]}
Na6 {[%clk 00:03:08]} {[%emt 00:00:16]} 16. Rfd1 {[%clk 00:02:45]} {[%emt
00:00:47]} c6 {[%clk 00:03:10]} {[%emt 00:00:02]} 17. Qe1 {[%clk 00:01:59]}
{[%emt 00:00:49]} Re8 {[%clk 00:02:16]} {[%emt 00:00:57]} 18. Ncd2 {[%clk
00:01:19]} {[%emt 00:00:43]} Nb4 {[%clk 00:02:04]} {[%emt 00:00:15]} 19. Nc4
{[%clk 00:01:02]} {[%emt 00:00:20]} Na6 {[%clk 00:02:06]} {[%emt 00:00:01]} 20.
e3 {[%clk 00:00:53]} {[%emt 00:00:11]} b5 {[%clk 00:01:01]} {[%emt 00:01:09]}
21. Na5 {[%clk 00:00:38]} {[%emt 00:00:18]} Qb6 {[%clk 00:00:37]} {[%emt
00:00:27]} 22. Ne5 {[%clk 00:00:26]} {[%emt 00:00:15]} Nb8 {[%clk 00:00:15]}
{[%emt 00:00:25]} 23. Bxd5 {[%clk 00:00:23]} {[%emt 00:00:05]} Nxd5 {[%clk
00:00:12]} {[%emt 00:00:07]} 24. Naxc6 {[%clk 00:00:21]} {[%emt 00:00:05]} Ra2
{[%clk 00:00:11]} {[%emt 00:00:04]} 25. Nxb8 {[%clk 00:00:11]} {[%emt
00:00:12]} Rxb2 {[%clk 00:00:07]} {[%emt 00:00:07]} 26. Nbd7 {[%clk 00:00:13]}
{[%emt 00:00:02]} Qe6 {[%clk 00:00:07]} {[%emt 00:00:03]} 27. Nc5 {[%clk
00:00:13]} {[%emt 00:00:03]} Qf5 {[%clk 00:00:07]} {[%emt 00:00:03]} 28. Ned3
{[%clk 00:00:11]} {[%emt 00:00:05]} Ra2 {[%clk 00:00:04]} {[%emt 00:00:06]} 29.
e4 {[%clk 00:00:11]} {[%emt 00:00:02]} Qf3 {[%clk 00:00:05]} {[%emt 00:00:03]}
30. exd5 {[%clk 00:00:07]} {[%emt 00:00:07]} Bxd4 {[%clk 00:00:07]} {[%emt
00:00:01]} 31. Ne4 {[%clk 00:00:07]} {[%emt 00:00:03]} Rea8 {[%clk 00:00:05]}
{[%emt 00:00:05]} 32. Ng5 {[%clk 00:00:04]} {[%emt 00:00:05]} Qg4 {[%clk
00:00:07]} {[%emt 00:00:02]} 33. Ne4 {[%clk 00:00:06]} {[%emt 00:00:02]} h5
{[%clk 00:00:08]} {[%emt 00:00:01]} 34. Kg2 {[%clk 00:00:07]} {[%emt 00:00:02]}
h4 {[%clk 00:00:11]} 35. h3 {[%clk 00:00:08]} {[%emt 00:00:01]} Qf5 {[%clk
00:00:12]} {[%emt 00:00:02]} 36. g4 {[%clk 00:00:09]} {[%emt 00:00:03]} Qxd5
{[%clk 00:00:07]} {[%emt 00:00:08]} 37. Nf4 {[%clk 00:00:11]} Qe5 {[%clk
00:00:08]} {[%emt 00:00:03]} 38. Nd3 {[%clk 00:00:07]} {[%emt 00:00:07]} Qd5
{[%clk 00:00:06]} {[%emt 00:00:05]} 39. Nb4 {[%clk 00:00:06]} {[%emt 00:00:04]}
Qe5 {[%clk 00:00:06]} {[%emt 00:00:03]} 40. Nxa2 {[%clk 00:00:07]} {[%emt
00:00:02]} Rxa2 {[%clk 00:00:08]} {[%emt 00:00:01]} 41. Nd2 {[%clk 00:00:05]}
{[%emt 00:00:05]} Qf4 {[%clk 00:00:07]} {[%emt 00:00:04]} 42. Qe2 {[%clk
00:00:04]} {[%emt 00:00:04]} Bb2 {[%clk 00:00:05]} {[%emt 00:00:05]} 43. Rc8+
{[%clk 00:00:06]} {[%emt 00:00:01]} Kh7 {[%clk 00:00:07]} {[%emt 00:00:01]} 44.
Qf3 {[%clk 00:00:07]} {[%emt 00:00:02]} Be5 {[%clk 00:00:04]} {[%emt 00:00:06]}
45. Qxf4 {[%clk 00:00:08]} {[%emt 00:00:02]} Bxf4 {[%clk 00:00:06]} 46. Ne4
{[%clk 00:00:09]} {[%emt 00:00:02]} Rb2 {[%clk 00:00:07]} {[%emt 00:00:01]} 47.
Kf3 {[%clk 00:00:10]} {[%emt 00:00:03]} Be5 {[%clk 00:00:09]} {[%emt 00:00:01]}
48. Rd3 {[%clk 00:00:10]} {[%emt 00:00:03]} b4 {[%clk 00:00:11]} {[%emt
00:00:01]} 49. Rc4 {[%clk 00:00:11]} {[%emt 00:00:02]} f5 {[%clk 00:00:11]}
{[%emt 00:00:02]} 50. gxf5 {[%clk 00:00:10]} {[%emt 00:00:05]} gxf5 {[%clk
00:00:14]} 51. Ng5+ {[%clk 00:00:12]} {[%emt 00:00:01]} Kg6 {[%clk 00:00:15]}
{[%emt 00:00:02]} 52. Ne6 {[%clk 00:00:13]} Bd6 {[%clk 00:00:15]} {[%emt
00:00:03]} 53. Nf8+ {[%clk 00:00:08]} {[%emt 00:00:09]} Kf7 {[%clk 00:00:17]}
{[%emt 00:00:01]} 54. Nd7 {[%clk 00:00:10]} Rb1 {[%clk 00:00:16]} {[%emt
00:00:03]} 55. Nb6 {[%clk 00:00:08]} {[%emt 00:00:05]} Rb2 {[%clk 00:00:08]}
{[%emt 00:00:12]} 56. Rc6 {[%clk 00:00:04]} {[%emt 00:00:07]} Bh2 {[%clk
00:00:10]} {[%emt 00:00:01]} 57. Rd5 {[%clk 00:00:06]} {[%emt 00:00:01]} e6
{[%clk 00:00:11]} {[%emt 00:00:02]} 58. Rd7+ {[%clk 00:00:08]} {[%emt
00:00:01]} Kf6 {[%clk 00:00:13]} {[%emt 00:00:01]} 59. Nd5+ {[%clk 00:00:09]}
{[%emt 00:00:02]} Ke5 {[%clk 00:00:14]} {[%emt 00:00:01]} 60. Ne3 {[%clk
00:00:11]} {[%emt 00:00:01]} Bg1 {[%clk 00:00:16]} {[%emt 00:00:01]} 61. Nc4+
{[%clk 00:00:14]} 1-0